bitfinex/quotes_SOLUSD_20240616
["timestamp","ask_amount","ask_price","bid_price","bid_amount"]
[1718575943152,0.4973,150.89,150.88,175.0326]
[1718575943532,0.4973,150.89,150.88,74.5226]
[1718575943733,0.4973,150.89,150.88,32.4522]
[1718575943955,0.4973,150.89,150.88,54.5226]
[1718575945165,0.4973,150.89,150.86,2.4525]
[1718575945334,0.4973,150.89,150.85,30.0]
[1718575945654,2.4524,150.87,150.82,4.9063]
[1718575945856,2.4524,150.87,150.81,22.0802]
[1718575946036,0.4973,150.89,150.74,117.9758]
[1718575946234,0.4973,150.89,150.78,2.4538]
[1718575946235,2.4531,150.83,150.78,2.4538]
[1718575946542,7.3589,150.84,150.78,22.0849]
[1718575946543,4.906,150.84,150.78,22.0849]
[1718575946750,7.359,150.84,150.79,2.4536]
[1718575946953,2.4534,150.81,150.76,7.3624]
[1718575947144,12.2664,150.82,150.76,7.3624]
[1718575947145,7.3599,150.82,150.77,2.454]
[1718575947461,2.4531,150.83,150.78,2.4539]
[1718575947643,7.3571,150.88,150.83,2.453]
[1718575947835,7.3571,150.88,150.75,100.0]
[1718575947836,17.1674,150.87,150.8,2.4534]
[1718575948033,7.3583,150.85,150.79,14.7218]
[1718575948234,2.4529,150.84,150.79,7.3609]
[1718575948441,2.4527,150.86,150.81,2.4533]
[1718575948745,7.3576,150.87,150.82,2.4532]
[1718575948945,2.4525,150.87,150.82,12.2661]
[1718575949149,0.4973,150.89,150.84,7.3584]
[1718575949377,0.4973,150.89,150.83,2.453]
[1718575949378,7.3569,150.88,150.83,2.453]
[1718575949584,2.4524,150.87,150.83,2.453]
[1718575949747,2.4525,150.87,150.82,2.4531]
[1718575949947,4.9046,150.88,150.82,24.5315]
[1718575950150,7.3573,150.87,150.81,22.0799]
[1718575950373,5.4016,150.89,150.83,4.9059]
[1718575950559,22.5666,150.89,150.84,2.4528]
[1718575950759,2.4523,150.88,150.84,2.4528]
[1718575950979,22.5666,150.89,150.84,2.4528]
[1718575950980,15.2103,150.89,150.84,2.4528]
[1718575951175,2.9495,150.89,150.85,2.4527]
[1718575951355,2.9495,150.89,150.83,17.1715]
[1718575951356,5.4015,150.89,150.83,4.906]
[1718575951552,24.5263,150.86,150.8,17.1746]
[1718575951764,24.5263,150.86,150.8,7.3605]
[1718575951765,2.4528,150.85,150.8,7.3605]
[1718575951980,7.3581,150.86,150.81,2.4534]
[1718575952352,0.4973,150.89,150.73,120.72]
[1718575952554,7.3585,150.85,150.8,7.3605]
[1718575952770,2.4526,150.86,150.81,4.9068]
[1718575953081,0.4973,150.89,150.83,2.453]
[1718575953381,7.3571,150.88,150.83,2.453]
[1718575953587,2.4524,150.87,150.83,2.453]
[1718575953752,2.4524,150.87,150.82,7.3594]
[1718575953947,2.4524,150.87,150.83,2.453]
[1718575954193,7.3571,150.88,150.83,7.3591]
[1718575954349,5.4017,150.89,150.84,7.3586]
[1718575954553,0.4973,150.89,150.86,2.4525]
[1718575954779,0.4973,150.89,150.85,24.5268]
[1718575954978,0.4973,150.89,150.85,7.3579]
[1718575955160,0.4973,150.89,150.86,7.3576]
[1718575955565,0.4973,150.89,150.87,4.9048]
[1718575955787,0.4973,150.89,150.81,20.0]
[1718575955958,0.4973,150.89,150.87,2.4523]
[1718575956305,0.4973,150.89,150.86,2.4525]
[1718575956584,0.4973,150.89,150.85,2.4526]
[1718575956585,7.41312223,150.89,150.85,2.4526]
[1718575956781,7.41312223,150.89,150.78,100.0]
[1718575956782,0.4973,150.89,150.86,22.073]
[1718575956994,0.4973,150.89,150.87,2.4523]
[1718575957290,0.4973,150.89,150.8,100.0]
[1718575957512,0.4973,150.89,150.88,24.5226]
[1718575958187,0.4973,150.89,150.88,7.3567]
[1718575958385,0.4973,150.89,150.88,2.4522]
[1718575959188,0.4973,150.89,150.87,24.5232]
[1718575959406,0.4973,150.89,150.88,2.4522]
[1718575959774,0.4973,150.89,150.8,100.0]
[1718575959980,0.4973,150.89,150.76,100.0]
[1718575960178,25.0187,150.89,150.76,130.0]
[1718575960371,0.4973,150.89,150.84,2.4528]
[1718575960570,0.4973,150.89,150.85,7.3581]
[1718575961170,0.4973,150.89,150.86,7.3576]
[1718575961406,4.9047,150.88,150.83,2.453]
[1718575961696,2.4524,150.87,150.82,24.5316]
[1718575961869,14.7146,150.87,150.82,2.4531]
[1718575962078,22.0757,150.85,150.79,4.9074]
[1718575962271,2.4528,150.85,150.81,2.4533]
[1718575962472,2.4529,150.84,150.8,2.4535]
[1718575962687,14.7178,150.84,150.79,2.4536]
[1718575962893,0.17,150.86,150.78,2.4537]
[1718575963196,7.3594,150.83,150.78,7.3615]
[1718575963382,2.4531,150.83,150.79,2.4537]
[1718575963583,2.4531,150.83,150.78,12.2695]
[1718575963802,24.53,150.84,150.79,2.4537]
[1718575964204,7.359,150.84,150.79,7.3611]
[1718575964400,2.4531,150.83,150.79,2.4537]
[1718575964993,2.4531,150.83,150.78,7.3614]
[1718575964994,7.3593,150.83,150.78,7.3614]
[1718575965308,7.3603,150.81,150.76,2.4541]
[1718575965495,28.2676,150.82,150.77,2.454]
[1718575965699,2.4536,150.8,150.76,2.454]
[1718575965901,12.2673,150.81,150.76,2.454]
[1718575966219,24.5345,150.81,150.76,2.454]
[1718575966415,12.2688,150.79,150.74,2.4545]
[1718575966584,2.4538,150.79,150.67,6.333]
[1718575966790,2.4538,150.79,150.75,2.4543]
[1718575966985,2.4539,150.78,150.67,6.333]
[1718575967188,2.454,150.77,150.73,2.4546]
[1718575967381,2.454,150.77,150.72,24.5478]
[1718575967584,7.3618,150.78,150.73,2.4547]
[1718575967806,7.3618,150.78,150.64,120.72]
[1718575967807,0.17,150.79,150.75,2.4543]
[1718575968029,2.4539,150.78,150.74,2.4544]
[1718575968511,2.454,150.77,150.72,22.0932]
[1718575968686,4.9087,150.76,150.64,20.72]
[1718575968888,4.9088,150.75,150.7,2.455]
[1718575969089,22.0896,150.75,150.7,2.455]
[1718575969310,2.4545,150.75,150.71,2.455]
[1718575969620,2.4544,150.75,150.7,7.3654]
[1718575969912,2.4546,150.74,150.69,4.9105]
[1718575970211,2.4547,150.73,150.69,2.4553]
[1718575970428,7.3643,150.73,150.68,2.4554]
[1718575970594,2.4548,150.73,150.69,2.4553]
[1718575971022,24.5465,150.74,150.69,2.4553]
[1718575971202,2.4547,150.73,150.69,2.4553]
[1718575971398,21.6161,150.73,150.69,7.3659]
[1718575971604,26.5258,150.73,150.61,100.0]
[1718575971792,21.6161,150.73,150.62,1.53582061]
[1718575971990,2.4542,150.76,150.71,12.2751]
[1718575972214,28.6748,150.77,150.72,2.4548]
[1718575972418,28.6748,150.77,150.71,22.0952]
[1718575972419,14.7254,150.76,150.71,7.3649]
[1718575972728,6.5879,150.77,150.62,21.53582061]
[1718575972897,7.3637,150.74,150.69,7.3659]
[1718575973209,2.4546,150.74,150.69,12.2766]
[1718575973412,2.4546,150.74,150.69,12.2768]
[1718575973620,7.3633,150.75,150.69,7.3661]
[1718575973825,2.4544,150.75,150.7,12.2758]
[1718575973995,2.4544,150.75,150.7,14.7308]
[1718575974196,2.4544,150.75,150.7,12.2758]
[1718575974408,2.4544,150.75,150.7,14.7308]
[1718575974615,2.4544,150.75,150.7,7.3652]
[1718575974797,7.3632,150.75,150.7,7.3652]
[1718575975005,2.4545,150.74,150.69,7.3658]
[1718575975335,2.4545,150.74,150.68,7.3662]
[1718575975336,0.17,150.73,150.62,1.53582061]
[1718575975917,7.3652,150.71,150.58,106.095]
[1718575976213,17.1846,150.72,150.66,4.9116]
[1718575976392,7.3649,150.72,150.66,17.1903]
[1718575976718,2.4549,150.72,150.68,2.4555]
[1718575977220,2.455,150.71,150.67,2.4555]
[1718575977399,24.549,150.72,150.67,2.4555]
[1718575977727,2.455,150.71,150.67,2.4555]
[1718575978023,4.9099,150.72,150.67,2.4555]
[1718575978024,14.7295,150.72,150.67,2.4555]
[1718575978335,9.9891,150.73,150.59,1.53612657]
[1718575978336,7.3644,150.73,150.59,1.53612657]
[1718575978495,106.5879,150.77,150.59,21.53612657]
[1718575978685,24.5497,150.72,150.66,12.2789]
[1718575978895,14.7286,150.73,150.68,2.4554]
[1718575979099,5.2488,150.75,150.7,2.4551]
[1718575979310,5.2488,150.75,150.6,119.94]
[1718575979311,7.3637,150.74,150.69,7.3658]
[1718575979510,2.4546,150.74,150.69,14.7317]
[1718575979714,17.1823,150.74,150.68,12.2773]
[1718575979900,2.4546,150.74,150.69,7.3658]
[1718575980101,2.4546,150.74,150.69,12.2766]
[1718575980306,7.3642,150.73,150.68,2.4554]
[1718575980518,4.9096,150.73,150.68,7.3664]
[1718575980704,7.3644,150.73,150.68,7.3664]
[1718575980903,4.9096,150.73,150.67,7.3667]
[1718575981200,4.9099,150.72,150.67,2.4555]
[1718575981506,7.3638,150.74,150.69,2.4552]
[1718575981711,6.92392242,150.76,150.67,20.72]
[1718575982014,6.5879,150.77,150.73,4.9092]
[1718575982328,9.042,150.77,150.73,2.4546]
[1718575982508,28.6746,150.77,150.72,2.4547]
[1718575982719,2.4542,150.76,150.72,2.4548]
[1718575982907,2.4542,150.76,150.71,12.2748]
[1718575983105,17.1796,150.76,150.7,4.9102]
[1718575983292,6.5879,150.77,150.64,20.72]
[1718575983732,2.4551,150.71,150.66,4.9117]
[1718575983902,2.4551,150.71,150.66,7.3673]
[1718575984111,2.4551,150.71,150.6,16.233]
[1718575984112,22.0932,150.73,150.67,4.9113]
[1718575984406,0.17,150.74,150.6,16.233]
[1718575984614,7.5342,150.73,150.68,2.4554]
[1718575984791,2.6248,150.73,150.69,2.4553]
[1718575984994,2.6248,150.73,150.68,12.2774]
[1718575984995,2.4547,150.73,150.68,22.0995]
[1718575985224,2.4546,150.74,150.69,7.366]
[1718575985419,2.4546,150.74,150.69,7.3659]
[1718575985596,2.4547,150.73,150.69,2.4553]
[1718575985806,7.3641,150.73,150.68,14.7326]
[1718575986204,17.1821,150.74,150.6,16.233]
[1718575986205,100.17,150.74,150.6,16.233]
[1718575986519,2.4552,150.7,150.66,2.4558]
[1718575986823,2.4552,150.7,150.65,12.2796]
[1718575986997,14.7312,150.7,150.65,2.4558]
[1718575987199,2.4555,150.68,150.63,2.4562]
[1718575987429,2.4555,150.68,150.59,1.53612657]
[1718575987430,2.4554,150.69,150.65,2.456]
[1718575987598,0.17,150.71,150.66,2.4558]
[1718575987599,22.2658,150.71,150.66,2.4558]
[1718575987804,22.2658,150.71,150.66,2.4557]
[1718575988121,24.7209,150.71,150.66,2.4557]
[1718575988316,7.5353,150.71,150.66,7.3673]
[1718575988514,2.4552,150.7,150.66,2.4557]
[1718575988824,2.4552,150.7,150.65,24.5595]
[1718575989000,7.3656,150.7,150.65,7.3676]
[1718575989414,2.4544,150.75,150.62,20.72]
[1718575989711,2.4546,150.74,150.69,22.0977]
[1718575989916,12.2744,150.72,150.67,2.4556]
[1718575990126,7.3652,150.71,150.66,7.3673]
[1718575990432,12.2769,150.69,150.64,7.3682]
[1718575990723,22.0978,150.7,150.64,12.2804]
[1718575990932,7.3653,150.71,150.66,7.3675]
[1718575991100,7.3653,150.71,150.66,7.3673]
[1718575991539,2.4551,150.71,150.66,4.9117]
[1718575991827,2.4548,150.73,150.6,20.0]
[1718575992015,4.9094,150.73,150.68,4.9108]
[1718575992222,22.094,150.72,150.67,2.4556]
[1718575992429,2.4549,150.72,150.68,2.4555]
[1718575992728,24.5446,150.75,150.7,7.3656]
[1718575992906,2.4545,150.74,150.7,2.4552]
[1718575993098,2.4545,150.75,150.7,12.2759]
[1718575993302,22.0886,150.76,150.7,7.3656]
[1718575993509,2.4543,150.75,150.7,7.3656]
[1718575993697,2.4543,150.75,150.7,12.2758]
[1718575994405,7.3629,150.76,150.71,4.91]
[1718575994613,2.4544,150.75,150.71,7.3649]
[1718575994824,14.7256,150.76,150.71,7.3649]
[1718575995041,7.3629,150.76,150.72,2.4548]
[1718575995234,31.1293,150.77,150.72,7.3644]
[1718575995409,13.9503,150.77,150.72,7.3644]
[1718575995606,2.4542,150.76,150.72,2.4547]
[1718575995827,2.4542,150.76,150.71,12.2749]
[1718575996412,7.3626,150.76,150.71,14.7298]
[1718575996817,2.4542,150.76,150.71,14.7298]
[1718575997107,2.4542,150.76,150.71,12.2749]
[1718575997324,7.3627,150.76,150.71,7.3647]
[1718575997720,12.2712,150.76,150.71,2.4549]
[1718575997902,7.3632,150.75,150.7,7.3654]
[1718575998111,7.3632,150.75,150.66,20.72]
[1718575998112,22.0902,150.75,150.69,12.2766]
[1718575998428,2.4545,150.74,150.7,2.4551]
[1718575998635,7.3637,150.74,150.69,12.2767]
[1718575998930,2.4546,150.74,150.7,2.455]
[1718575999231,4.9088,150.75,150.7,7.3653]
[1718575999444,2.4545,150.74,150.7,2.455]
[1718575999734,7.3633,150.75,150.7,7.3654]
[1718576000052,7.7028,150.76,150.71,4.91]
[1718576000209,24.8824,150.76,150.7,12.2757]
[1718576000407,7.7028,150.76,150.71,7.3651]
[1718576000727,7.7028,150.76,150.71,14.7299]
[1718576000904,2.4544,150.75,150.71,7.3648]
[1718576001117,7.3628,150.76,150.71,7.3648]
[1718576001323,2.4543,150.76,150.71,12.2748]
[1718576001650,7.3614,150.79,150.74,4.909]
[1718576001811,7.3607,150.8,150.75,4.9086]
[1718576002013,22.0821,150.8,150.75,2.4542]
[1718576002233,2.4537,150.79,150.75,2.4542]
[1718576002432,2.4537,150.79,150.74,12.2723]
[1718576003736,22.0823,150.8,150.74,7.3634]
[1718576003932,2.4537,150.79,150.74,12.2723]
[1718576004450,0.17,150.8,150.68,20.0]
[1718576004621,2.4544,150.75,150.7,12.2756]
[1718576005111,2.4547,150.73,150.68,4.9109]
[1718576005316,22.0916,150.74,150.68,7.3665]
[1718576005539,22.0916,150.74,150.67,6.3675]
[1718576005540,2.4546,150.74,150.69,12.2765]
[1718576005734,9.8175,150.75,150.7,7.3652]
[1718576005934,9.8174,150.76,150.63,20.72]
[1718576005935,2.455,150.71,150.63,27.2857]
[1718576006136,0.34,150.76,150.69,2.4553]
[1718576006137,2.4547,150.73,150.69,2.4553]
[1718576006329,7.3642,150.73,150.68,4.9107]
[1718576006540,4.9097,150.72,150.63,27.2857]
[1718576006722,2.4552,150.7,150.65,4.9118]
[1718576007055,22.0946,150.72,150.63,27.2857]
[1718576007340,0.17,150.73,150.64,7.3682]
[1718576007341,4.9104,150.7,150.64,7.3682]
[1718576007527,2.4554,150.69,150.65,2.4559]
[1718576008037,4.9102,150.71,150.61,1.53592258]
[1718576008349,2.4552,150.7,150.66,2.4557]
[1718576008518,2.6251,150.71,150.66,7.3672]
[1718576008719,8.8567,150.72,150.67,12.2782]
[1718576008934,8.8567,150.72,150.67,2.4555]
[1718576008935,2.455,150.71,150.67,2.4555]
[1718576009242,2.455,150.71,150.67,2.4556]
[1718576009432,6.4018,150.72,150.67,4.9113]
[1718576009749,2.4551,150.71,150.66,12.2788]
[1718576009931,2.4551,150.71,150.67,2.4556]
[1718576010238,2.4551,150.71,150.66,22.1021]
[1718576010239,16.8136,150.73,150.61,1.53592258]
[1718576010534,14.7282,150.73,150.68,7.3662]
[1718576010743,7.3641,150.73,150.68,7.3662]
[1718576010918,2.4548,150.72,150.68,7.3662]
[1718576011425,22.0923,150.73,150.68,7.3662]
[1718576011426,7.3642,150.73,150.68,7.3662]
[1718576011627,2.4548,150.73,150.69,2.4553]
[1718576012147,2.6249,150.72,150.68,2.4554]
[1718576012344,0.17,150.72,150.7,2.4551]
[1718576012575,2.455,150.71,150.61,21.53592258]
[1718576012841,7.3658,150.7,150.65,2.4558]
[1718576013148,7.5354,150.71,150.67,2.4556]
[1718576013346,7.5351,150.71,150.67,2.4556]
[1718576013518,2.4551,150.71,150.67,2.4556]
[1718576013723,22.433,150.73,150.68,2.4554]
[1718576013918,7.7043,150.73,150.68,2.4554]
[1718576014230,22.4326,150.73,150.68,2.4554]
[1718576014632,2.4549,150.72,150.68,2.4554]
[1718576014934,2.4549,150.72,150.68,2.4555]
[1718576015139,7.3649,150.72,150.67,2.4555]
[1718576015756,7.3651,150.71,150.66,2.4557]
[1718576015962,2.4551,150.71,150.67,2.4556]
[1718576016646,22.0955,150.71,150.66,2.4557]
[1718576016829,0.17,150.7,150.66,2.4557]
[1718576017031,7.3663,150.69,150.61,1.53592258]
[1718576017332,2.4554,150.69,150.65,2.4559]
[1718576017527,7.3661,150.69,150.64,2.456]
[1718576017728,7.3661,150.69,150.63,17.77]
[1718576017729,24.893,150.7,150.65,2.4559]
[1718576018043,7.7058,150.7,150.65,2.4559]
[1718576018235,7.7058,150.7,150.66,2.4558]
[1718576018435,0.34,150.7,150.66,2.4558]
[1718576018639,12.4452,150.71,150.66,2.4557]
[1718576018843,2.4552,150.7,150.66,2.4557]
[1718576019044,2.4552,150.7,150.66,2.4558]
[1718576019929,0.17,150.74,150.66,2.4558]
[1718576019930,17.1833,150.73,150.66,17.77]
[1718576020126,18.6737,150.75,150.7,2.455]
[1718576020450,18.6737,150.75,150.69,17.77]
[1718576020451,7.3636,150.74,150.69,17.77]
[1718576020635,2.4547,150.73,150.69,2.4552]
[1718576020835,14.7274,150.74,150.68,17.77]
[1718576021158,7.3638,150.74,150.69,2.42397]
[1718576021344,2.4547,150.73,150.69,2.42397]
[1718576021658,24.5456,150.74,150.69,2.42397]
[1718576021959,7.3646,150.72,150.67,2.4555]
[1718576022191,24.5493,150.72,150.67,20.2255]
[1718576022381,2.4551,150.71,150.67,17.77]
[1718576022664,6.4018,150.75,150.69,2.4552]
[1718576022859,2.4548,150.73,150.68,2.4554]
[1718576023037,7.3642,150.73,150.67,17.77]
[1718576023356,0.17,150.73,150.69,2.4552]
[1718576023753,2.455,150.71,150.67,2.4556]
[1718576023931,6.4018,150.75,150.72,2.4548]
[1718576024135,7.3626,150.76,150.7,17.77]
[1718576024465,7.3626,150.76,150.71,2.4549]
[1718576024663,14.7253,150.76,150.71,2.4549]
[1718576024952,2.4544,150.75,150.71,2.4549]
[1718576025156,7.3627,150.76,150.71,2.4549]
[1718576025756,7.3627,150.76,150.72,2.4548]
[1718576026157,33.9926,150.77,150.7,17.77]
[1718576026158,2.454,150.78,150.74,2.4545]
[1718576026334,4.9083,150.77,150.72,2.4548]
[1718576026660,14.7266,150.75,150.7,2.455]
[1718576026836,7.3634,150.75,150.7,2.455]
[1718576027034,7.3634,150.75,150.69,17.77]
[1718576027348,2.4542,150.76,150.72,2.4548]
[1718576027538,2.4542,150.76,150.69,17.77]
[1718576027539,2.4543,150.75,150.71,2.4549]
[1718576027751,7.3627,150.76,150.71,2.4549]
[1718576028256,2.4543,150.76,150.72,2.4548]
[1718576028753,5.0779,150.78,150.73,2.4546]
[1718576028942,12.4397,150.78,150.73,2.4546]
[1718576029134,14.8937,150.78,150.73,2.4546]
[1718576029337,2.4541,150.77,150.73,2.4546]
[1718576029555,24.7093,150.78,150.73,2.4546]
[1718576029960,22.0853,150.78,150.73,2.4546]
[1718576030138,2.454,150.77,150.73,2.4546]
[1718576030337,14.7243,150.77,150.72,20.2247]
[1718576030550,2.4542,150.76,150.72,20.2247]
[1718576030747,2.4534,150.81,150.77,2.454]
[1718576030954,2.4534,150.81,150.76,2.4541]
[1718576030955,24.5346,150.81,150.76,2.4541]
[1718576031264,100.0,150.84,150.75,17.77]
[1718576031463,20.0,150.83,150.75,17.77]
[1718576031651,2.4534,150.81,150.75,17.77]
[1718576031962,7.3602,150.81,150.75,17.77]
[1718576032164,2.4534,150.81,150.75,17.77]
[1718576032359,2.4536,150.8,150.75,17.77]
[1718576032661,2.4538,150.79,150.75,17.77]
[1718576032866,20.0,150.83,150.69,6.1475]
[1718576032867,2.4544,150.75,150.69,6.1475]
[1718576033047,4.9083,150.77,150.71,17.77]
[1718576033365,24.5408,150.77,150.71,17.77]
[1718576033565,22.0867,150.77,150.71,17.77]
[1718576033767,0.17,150.81,150.7,20.0]
[1718576033768,0.17,150.79,150.7,2.455]
[1718576033954,7.3632,150.75,150.69,17.77]
[1718576034266,7.3632,150.75,150.7,2.455]
[1718576034459,7.3632,150.75,150.71,2.455]
[1718576034662,2.4543,150.76,150.72,2.4548]
[1718576035039,2.4541,150.77,150.69,17.77]
[1718576035364,15.0624,150.79,150.74,2.4544]
[1718576035576,5.2474,150.79,150.74,2.4544]
[1718576035743,2.4539,150.78,150.74,2.4544]
[1718576035944,118.85965051,150.86,150.75,2.4542]
[1718576036268,2.4537,150.79,150.75,2.4542]
[1718576036766,2.4537,150.79,150.75,2.4543]
[1718576036961,22.0826,150.8,150.72,17.77]
[1718576036962,12.2679,150.8,150.72,17.77]
[1718576037146,7.3608,150.8,150.75,2.4542]
[1718576037344,4.9075,150.79,150.74,2.4544]
[1718576037665,22.2562,150.78,150.73,2.4546]
[1718576037877,2.454,150.77,150.73,2.4546]
[1718576039766,22.2562,150.78,150.71,17.77]
[1718576039767,0.17,150.76,150.71,17.77]
[1718576040078,7.3637,150.74,150.68,33.713]
[1718576040263,7.3635,150.75,150.68,33.713]
[1718576040264,4.9089,150.75,150.7,2.4551]
[1718576040466,7.3634,150.75,150.7,2.4551]
[1718576040767,7.3634,150.75,150.71,2.455]
[1718576040768,2.4545,150.75,150.71,2.455]
[1718576041161,7.3633,150.75,150.7,2.4551]
[1718576041341,17.182,150.74,150.68,17.77]
[1718576041546,2.4547,150.73,150.69,2.4552]
[1718576041767,14.8974,150.74,150.69,2.4552]
[1718576041961,14.8976,150.74,150.69,2.4552]
[1718576042289,22.0931,150.73,150.68,17.77]
[1718576042465,7.3646,150.72,150.68,17.77]
[1718576042665,2.455,150.71,150.68,17.77]
[1718576042970,2.455,150.71,150.65,6.1475]
[1718576042971,7.3653,150.71,150.66,2.4558]
[1718576043159,14.7304,150.71,150.66,2.4558]
[1718576043472,14.7304,150.71,150.65,17.77]
[1718576043473,24.5539,150.69,150.65,17.77]
[1718576043672,24.5538,150.69,150.65,17.77]
[1718576043846,2.4555,150.68,150.65,17.77]
[1718576045370,24.5537,150.69,150.65,17.77]
[1718576045568,7.3661,150.69,150.65,20.226]
[1718576045783,0.17,150.71,150.65,17.77]
[1718576046094,2.4555,150.68,150.61,6.242]
[1718576046264,7.3671,150.67,150.62,17.77]
[1718576046443,0.17,150.67,150.63,2.4562]
[1718576046781,0.17,150.68,150.64,2.4561]
[1718576047070,0.34,150.68,150.64,2.4561]
[1718576047257,2.4554,150.69,150.62,17.77]
[1718576047455,12.4486,150.67,150.62,20.2264]
[1718576047672,4.9128,150.63,150.58,2.4571]
[1718576047978,2.4565,150.62,150.58,2.4571]
[1718576048184,2.4564,150.63,150.58,2.4571]
[1718576048558,7.3691,150.63,150.58,2.457]
[1718576048974,2.4564,150.63,150.59,2.4569]
[1718576049160,0.17,150.63,150.59,2.4569]
[1718576049366,0.34,150.63,150.57,17.77]
[1718576049574,7.7092,150.63,150.58,2.457]
[1718576049951,7.3695,150.62,150.57,2.4572]
[1718576050154,0.17,150.61,150.56,17.77]
[1718576050368,0.17,150.61,150.57,2.4571]
[1718576050560,0.17,150.61,150.57,2.4572]
[1718576050762,0.34,150.62,150.58,2.4571]
[1718576050973,0.17,150.62,150.58,2.4571]
[1718576051165,0.17,150.62,150.56,17.77]
[1718576051369,0.17,150.62,150.58,2.457]
[1718576051370,0.51,150.62,150.58,2.457]
[1718576051657,2.4567,150.61,150.56,20.2273]
[1718576051893,2.4567,150.61,150.57,2.4573]
[1718576052058,2.4567,150.61,150.56,17.77]
[1718576052270,2.4567,150.61,150.53,6.2391]
[1718576052472,7.37,150.61,150.57,2.4573]
[1718576052667,7.37,150.61,150.55,17.77]
[1718576052668,17.3684,150.6,150.55,17.77]
[1718576052977,7.371,150.59,150.55,17.77]
[1718576053383,2.457,150.59,150.55,20.2276]
[1718576053577,2.457,150.59,150.55,17.77]
[1718576053778,24.739,150.6,150.55,20.2276]
[1718576053983,7.5407,150.6,150.55,20.2276]
[1718576054183,6.2688,150.58,150.45,6.0129]
[1718576054394,0.68,150.57,150.5,17.77]
[1718576054575,25.254,150.57,150.52,2.458]
[1718576055112,100.0,150.6,150.53,17.77]
[1718576055113,4.914,150.59,150.53,17.77]
[1718576055270,0.17,150.58,150.53,17.77]
[1718576055660,0.17,150.58,150.54,2.4577]
[1718576055661,2.6271,150.58,150.54,2.4577]
[1718576055859,0.17,150.58,150.53,20.2278]
[1718576056096,2.627,150.59,150.53,17.77]
[1718576056461,2.4571,150.58,150.54,2.4577]
[1718576056664,2.4571,150.58,150.53,20.2278]
[1718576056886,0.17,150.55,150.51,20.2282]
[1718576057186,22.4597,150.55,150.51,17.77]
[1718576057376,2.7977,150.55,150.51,20.2282]
[1718576057565,0.34,150.55,150.51,17.77]
[1718576057780,0.34,150.55,150.52,2.4581]
[1718576058104,2.4573,150.57,150.53,2.4579]
[1718576058264,2.4573,150.57,150.52,2.458]
[1718576058573,2.4573,150.57,150.53,2.4579]
[1718576058758,2.4573,150.57,150.51,17.77]
[1718576058958,24.912,150.58,150.53,2.4579]
[1718576059202,7.7115,150.58,150.53,2.4578]
[1718576059381,15.083,150.58,150.53,2.4578]
[1718576059584,7.3719,150.57,150.52,2.458]
[1718576060259,2.4576,150.55,150.51,20.2282]
[1718576060485,17.1997,150.59,150.51,17.77]
[1718576060656,2.4573,150.57,150.53,2.4578]
[1718576061295,16.3736,150.63,150.51,17.77]
[1718576061495,24.5703,150.59,150.54,2.4577]
[1718576061807,2.4573,150.57,150.53,2.4579]
[1718576061975,2.4575,150.56,150.52,2.458]